[Event "*** Titled Tuesday Blitz"]
[Site "Chess.com"]
[Date "2020.05.12"]
[Round "5"]
[White "Hikaru"]
[Black "Shield12"]
[Result "1-0"]
[WhiteElo "3240"]
[BlackElo "2808"]
[TimeControl "180+1"]
[EndTime "10:55:30 PDT"]
[Termination "Hikaru won by resignation"]

1. Nf3 {[%clk 0:03:00.9]} 1... Nf6 {[%clk 0:02:59.6]} 2. b3 {[%clk 0:03:00.6]}
2... b6 {[%clk 0:02:57.9]} 3. Bb2 {[%clk 0:03:00.4]} 3... Bb7 {[%clk 0:02:58.8]}
4. e3 {[%clk 0:03:00.5]} 4... e6 {[%clk 0:02:58.8]} 5. d4 {[%clk 0:02:54.3]}
5... c5 {[%clk 0:02:57.9]} 6. Nbd2 {[%clk 0:02:54]} 6... Be7 {[%clk 0:02:57]} 7.
Bd3 {[%clk 0:02:53.5]} 7... O-O {[%clk 0:02:56.7]} 8. O-O {[%clk 0:02:51.2]}
8... cxd4 {[%clk 0:02:56.8]} 9. exd4 {[%clk 0:02:50.7]} 9... d6 {[%clk
0:02:57.3]} 10. Re1 {[%clk 0:02:49.9]} 10... Nbd7 {[%clk 0:02:57.1]} 11. a3
{[%clk 0:02:49.7]} 11... a6 {[%clk 0:02:56.3]} 12. c4 {[%clk 0:02:49]} 12... Rc8
{[%clk 0:02:55.6]} 13. b4 {[%clk 0:02:48.7]} 13... Re8 {[%clk 0:02:52.9]} 14.
Rc1 {[%clk 0:02:47.7]} 14... Nf8 {[%clk 0:02:52.2]} 15. Bf1 {[%clk 0:02:41.3]}
15... Ng6 {[%clk 0:02:51.6]} 16. g3 {[%clk 0:02:40.3]} 16... Qc7 {[%clk
0:02:50.8]} 17. Bh3 {[%clk 0:02:35.7]} 17... Rcd8 {[%clk 0:02:38.7]} 18. Ng5
{[%clk 0:02:25.6]} 18... Bf8 {[%clk 0:02:22.5]} 19. d5 {[%clk 0:02:18.6]} 19...
e5 {[%clk 0:02:15.9]} 20. a4 {[%clk 0:02:12]} 20... Qe7 {[%clk 0:02:11.1]} 21.
f4 {[%clk 0:02:03.2]} 21... b5 {[%clk 0:02:04.8]} 22. f5 {[%clk 0:01:56.3]}
22... Nh8 {[%clk 0:01:51.6]} 23. Nge4 {[%clk 0:01:44.7]} 23... bxc4 {[%clk
0:01:48.1]} 24. Nxf6+ {[%clk 0:01:44.8]} 24... Qxf6 {[%clk 0:01:47.8]} 25. Ne4
{[%clk 0:01:43.5]} 25... Qh6 {[%clk 0:01:46.9]} 26. Bf1 {[%clk 0:01:42]} 26...
f6 {[%clk 0:01:41.2]} 27. Rxc4 {[%clk 0:01:40.4]} 27... g5 {[%clk 0:01:23.9]}
28. h4 {[%clk 0:01:30.3]} 28... Nf7 {[%clk 0:01:07.8]} 29. Bc1 {[%clk
0:01:28.2]} 29... Be7 {[%clk 0:01:03.7]} 30. Rc7 {[%clk 0:01:26.9]} 30... Bc8
{[%clk 0:01:03.3]} 31. Qf3 {[%clk 0:01:08.8]} 31... Kh8 {[%clk 0:00:54.7]} 32.
Bd3 {[%clk 0:01:00.8]} 32... Rd7 {[%clk 0:00:53.9]} 33. Rc6 {[%clk 0:00:49.4]}
33... Qf8 {[%clk 0:00:44.2]} 34. hxg5 {[%clk 0:00:48.9]} 34... Nxg5 {[%clk
0:00:44.1]} 35. Bxg5 {[%clk 0:00:48.1]} 35... fxg5 {[%clk 0:00:45]} 36. f6
{[%clk 0:00:48.5]} 36... Bd8 {[%clk 0:00:45.2]} 37. Rf1 {[%clk 0:00:47.8]} 37...
Rf7 {[%clk 0:00:42.7]} 38. Qh5 {[%clk 0:00:40.6]} 38... Rb7 {[%clk 0:00:20.6]}
39. f7 {[%clk 0:00:33.9]} 39... Ree7 {[%clk 0:00:19]} 40. Nxg5 {[%clk
0:00:29.7]} 40... h6 {[%clk 0:00:19]} 41. Qg6 {[%clk 0:00:29.2]} 1-0

[Event "*** Titled Tuesday Blitz"]
[Site "Chess.com"]
[Date "2020.05.12"]
[Round "5"]
[White "SaySpade4VIP"]
[Black "Bacyanide"]
[Result "1-0"]
[WhiteElo "2648"]
[BlackElo "2416"]
[TimeControl "180+1"]
[EndTime "10:55:30 PDT"]
[Termination "SaySpade4VIP won on time"]

1. d4 {[%clk 0:02:56.2]} 1... d5 {[%clk 0:02:59.6]} 2. Bf4 {[%clk 0:02:55.1]}
2... e6 {[%clk 0:02:54.1]} 3. e3 {[%clk 0:02:55]} 3... Bd6 {[%clk 0:02:53.6]} 4.
Bg3 {[%clk 0:02:54.8]} 4... c5 {[%clk 0:02:49.2]} 5. Bb5+ {[%clk 0:02:53.3]}
5... Nc6 {[%clk 0:02:46.8]} 6. c3 {[%clk 0:02:52.2]} 6... Nf6 {[%clk 0:02:39.1]}
7. Nf3 {[%clk 0:02:51.8]} 7... O-O {[%clk 0:02:38.2]} 8. Nbd2 {[%clk 0:02:51.5]}
8... a6 {[%clk 0:02:25.9]} 9. Bxc6 {[%clk 0:02:51.2]} 9... bxc6 {[%clk
0:02:26.8]} 10. Qa4 {[%clk 0:02:51.6]} 10... Bxg3 {[%clk 0:02:10.1]} 11. hxg3
{[%clk 0:02:52.5]} 11... cxd4 {[%clk 0:01:43]} 12. cxd4 {[%clk 0:02:53.4]} 12...
Bd7 {[%clk 0:01:40.4]} 13. Qc2 {[%clk 0:02:49.6]} 13... Rc8 {[%clk 0:01:32.7]}
14. g4 {[%clk 0:02:38.8]} 14... c5 {[%clk 0:01:28]} 15. dxc5 {[%clk 0:02:31.8]}
15... Qa5 {[%clk 0:01:27.8]} 16. Ne5 {[%clk 0:01:36.9]} 16... Rxc5 {[%clk
0:01:22.9]} 17. Qb1 {[%clk 0:01:37.1]} 17... Ne4 {[%clk 0:01:16.5]} 18. b4
{[%clk 0:01:35]} 18... Qc7 {[%clk 0:00:50.9]} 19. Nxd7 {[%clk 0:01:21.9]} 19...
Rc2 {[%clk 0:00:40.6]} 20. Nxe4 {[%clk 0:01:07.8]} 20... dxe4 {[%clk 0:00:39.3]}
21. Nxf8 {[%clk 0:01:00.3]} 21... Qc3+ {[%clk 0:00:36.3]} 22. Kf1 {[%clk
0:01:00]} 22... Qd3+ {[%clk 0:00:12.7]} 23. Kg1 {[%clk 0:00:58.7]} 23... Kxf8
{[%clk 0:00:11.4]} 24. Qf1 {[%clk 0:00:54.4]} 24... Qc3 {[%clk 0:00:08.2]} 25.
Rd1 {[%clk 0:00:53.2]} 25... Ke7 {[%clk 0:00:07.4]} 26. Rxh7 {[%clk 0:00:52.7]}
26... Qxb4 {[%clk 0:00:03.8]} 27. Rxg7 {[%clk 0:00:49.3]} 27... Kf6 {[%clk
0:00:03.5]} 28. Rh7 {[%clk 0:00:47.6]} 28... Kg6 {[%clk 0:00:03]} 29. Rh3 {[%clk
0:00:46.4]} 29... Rxa2 {[%clk 0:00:03.2]} 30. Rh5 {[%clk 0:00:36]} 30... Qb2
{[%clk 0:00:03.2]} 31. Rc5 {[%clk 0:00:28.3]} 31... a5 {[%clk 0:00:03.5]} 32.
Rb1 {[%clk 0:00:27.2]} 32... Qd2 {[%clk 0:00:02.7]} 33. Rd1 {[%clk 0:00:26.1]}
33... Qb2 {[%clk 0:00:02.7]} 34. Rdc1 {[%clk 0:00:26]} 34... a4 {[%clk
0:00:01.9]} 35. R5c2 {[%clk 0:00:26.1]} 35... Qxc2 {[%clk 0:00:02.1]} 36. Rxc2
{[%clk 0:00:27]} 36... Rxc2 {[%clk 0:00:02.8]} 37. Qb1 {[%clk 0:00:23]} 1-0

[Event "*** Titled Tuesday Blitz"]
[Site "Chess.com"]
[Date "2020.05.12"]
[Round "5"]
[White "djano"]
[Black "Barys1974"]
[Result "0-1"]
[WhiteElo "2438"]
[BlackElo "2634"]
[TimeControl "180+1"]
[EndTime "10:55:30 PDT"]
[Termination "Barys1974 won by resignation"]

1. d4 {[%clk 0:03:00.9]} 1... d5 {[%clk 0:02:54.6]} 2. Bf4 {[%clk 0:03:00.1]}
2... c5 {[%clk 0:02:52.3]} 3. e3 {[%clk 0:02:57.7]} 3... Nc6 {[%clk 0:02:52.6]}
4. Nf3 {[%clk 0:02:55]} 4... Nf6 {[%clk 0:02:50.4]} 5. Nbd2 {[%clk 0:02:52.3]}
5... cxd4 {[%clk 0:02:42.4]} 6. exd4 {[%clk 0:02:51.1]} 6... Bf5 {[%clk
0:02:41.7]} 7. c3 {[%clk 0:02:36]} 7... e6 {[%clk 0:02:39.2]} 8. Be2 {[%clk
0:02:32.9]} 8... Be7 {[%clk 0:02:32.6]} 9. Nh4 {[%clk 0:02:31.8]} 9... Bg6
{[%clk 0:02:20.3]} 10. Nxg6 {[%clk 0:02:31.6]} 10... hxg6 {[%clk 0:02:20.7]} 11.
O-O {[%clk 0:02:27.4]} 11... Bd6 {[%clk 0:02:20.7]} 12. Bxd6 {[%clk 0:02:08.3]}
12... Qxd6 {[%clk 0:02:19.3]} 13. Nf3 {[%clk 0:02:08.8]} 13... g5 {[%clk
0:02:16.7]} 14. Bb5 {[%clk 0:02:06.8]} 14... Nd7 {[%clk 0:02:12.9]} 15. Bxc6
{[%clk 0:02:01.1]} 15... bxc6 {[%clk 0:02:11.9]} 16. Re1 {[%clk 0:01:54]} 16...
f6 {[%clk 0:02:11]} 17. h3 {[%clk 0:01:46.8]} 17... Kf7 {[%clk 0:02:04.6]} 18.
Re2 {[%clk 0:01:40.2]} 18... Rh6 {[%clk 0:01:59.6]} 19. Qb3 {[%clk 0:01:25.3]}
19... g4 {[%clk 0:01:53]} 20. Nh2 {[%clk 0:01:04.7]} 20... gxh3 {[%clk
0:01:51.9]} 21. g3 {[%clk 0:01:05]} 21... Rg6 {[%clk 0:01:35.9]} 22. Kh1 {[%clk
0:00:59.2]} 22... c5 {[%clk 0:01:29.6]} 23. Rae1 {[%clk 0:00:57.7]} 23... c4
{[%clk 0:01:27.6]} 24. Qb7 {[%clk 0:00:43.5]} 24... Re8 {[%clk 0:01:21.2]} 25.
Qxa7 {[%clk 0:00:41.3]} 25... Re7 {[%clk 0:01:14.5]} 26. Qa8 {[%clk 0:00:36.6]}
26... e5 {[%clk 0:01:11.3]} 27. dxe5 {[%clk 0:00:24.8]} 27... fxe5 {[%clk
0:01:07.2]} 28. Nf3 {[%clk 0:00:21.6]} 28... e4 {[%clk 0:01:03.3]} 29. Nd4
{[%clk 0:00:21.5]} 29... Rf6 {[%clk 0:01:01]} 30. Qh8 {[%clk 0:00:19.6]} 30...
Ne5 {[%clk 0:00:58.3]} 31. Qxh3 {[%clk 0:00:19.1]} 31... Nd3 {[%clk 0:00:57.6]}
32. Qh5+ {[%clk 0:00:18.5]} 32... g6 {[%clk 0:00:55.9]} 33. Qh7+ {[%clk
0:00:18.4]} 33... Ke8 {[%clk 0:00:55.7]} 34. Qh8+ {[%clk 0:00:13.7]} 34... Rf8
{[%clk 0:00:55.4]} 35. Qh3 {[%clk 0:00:12.7]} 35... Nxf2+ {[%clk 0:00:48.7]} 36.
Rxf2 {[%clk 0:00:12.9]} 36... Rxf2 {[%clk 0:00:49]} 37. Qc8+ {[%clk 0:00:11.1]}
37... Kf7 {[%clk 0:00:47.8]} 38. Nc6 {[%clk 0:00:09]} 38... Qxg3 {[%clk
0:00:42.1]} 39. Nd8+ {[%clk 0:00:06.5]} 39... Kg7 {[%clk 0:00:39.4]} 40. Ne6+
{[%clk 0:00:03.1]} 40... Rxe6 {[%clk 0:00:39.4]} 41. Qd7+ {[%clk 0:00:02.7]}
41... Kh6 {[%clk 0:00:39.4]} 0-1

[Event "*** Titled Tuesday Blitz"]
[Site "Chess.com"]
[Date "2020.05.12"]
[Round "5"]
[White "Blitzking642"]
[Black "Zq1"]
[Result "0-1"]
[WhiteElo "2263"]
[BlackElo "2537"]
[TimeControl "180+1"]
[EndTime "10:55:30 PDT"]
[Termination "Zq1 won by resignation"]

1. d4 {[%clk 0:03:00.9]} 1... Nf6 {[%clk 0:02:59.2]} 2. c4 {[%clk 0:03:01.2]}
2... a6 {[%clk 0:02:59.2]} 3. Nc3 {[%clk 0:03:00.4]} 3... c5 {[%clk 0:02:59.3]}
4. d5 {[%clk 0:02:58.8]} 4... b5 {[%clk 0:02:58.7]} 5. cxb5 {[%clk 0:02:57.1]}
5... axb5 {[%clk 0:02:58.9]} 6. Nxb5 {[%clk 0:02:55.9]} 6... Qa5+ {[%clk
0:02:58.2]} 7. Nc3 {[%clk 0:02:55.4]} 7... Bb7 {[%clk 0:02:58.8]} 8. Bd2 {[%clk
0:02:52]} 8... Qb6 {[%clk 0:02:58.3]} 9. e4 {[%clk 0:02:49.4]} 9... e6 {[%clk
0:02:57.8]} 10. dxe6 {[%clk 0:02:37.5]} 10... fxe6 {[%clk 0:02:57.5]} 11. Qc2
{[%clk 0:02:36.8]} 11... Nc6 {[%clk 0:02:56.3]} 12. Nf3 {[%clk 0:02:35.7]} 12...
Nd4 {[%clk 0:02:53.6]} 13. Qb1 {[%clk 0:02:32.8]} 13... Be7 {[%clk 0:02:48.9]}
14. Bd3 {[%clk 0:02:29.1]} 14... Ng4 {[%clk 0:02:30.5]} 15. O-O {[%clk
0:01:42.5]} 15... Nxf3+ {[%clk 0:02:26.5]} 16. gxf3 {[%clk 0:01:43.4]} 16... Ne5
{[%clk 0:02:24.5]} 17. Be2 {[%clk 0:01:43.8]} 17... O-O {[%clk 0:02:22.9]} 18.
Be3 {[%clk 0:01:38.4]} 18... Nxf3+ {[%clk 0:02:19.9]} 19. Bxf3 {[%clk
0:01:37.7]} 19... Rxf3 {[%clk 0:02:19.9]} 20. Rd1 {[%clk 0:01:37]} 20... Rxe3
{[%clk 0:02:03.7]} 21. fxe3 {[%clk 0:01:36.3]} 21... c4 {[%clk 0:02:03.7]} 22.
Re1 {[%clk 0:01:31.9]} 22... Bg5 {[%clk 0:01:43.1]} 23. Qc1 {[%clk 0:01:30]}
23... Rf8 {[%clk 0:01:42.2]} 24. Qd2 {[%clk 0:01:18.4]} 24... Rf3 {[%clk
0:01:41.4]} 25. Qxd7 {[%clk 0:01:10.6]} 25... h6 {[%clk 0:01:39.6]} 26. Kg2
{[%clk 0:00:49.6]} 26... Rf7 {[%clk 0:01:23.6]} 27. Qe8+ {[%clk 0:00:45.9]}
27... Rf8 {[%clk 0:01:23.3]} 28. Qb5 {[%clk 0:00:45.6]} 28... Bxe4+ {[%clk
0:01:22.2]} 29. Kh3 {[%clk 0:00:29.1]} 29... Rf3+ {[%clk 0:01:02.1]} 30. Kg4
{[%clk 0:00:26.5]} 30... Qxb5 {[%clk 0:00:59.3]} 31. Nxb5 {[%clk 0:00:25.5]}
31... Rf2 {[%clk 0:00:54.6]} 32. Nd6 {[%clk 0:00:20.6]} 32... Bd3 {[%clk
0:00:38.5]} 33. h4 {[%clk 0:00:20.2]} 33... Be7 {[%clk 0:00:36.5]} 34. Nb5
{[%clk 0:00:18.8]} 34... Rxb2 {[%clk 0:00:33.2]} 35. Nd4 {[%clk 0:00:18.3]}
35... Bd6 {[%clk 0:00:27.2]} 36. a4 {[%clk 0:00:17.9]} 36... e5 {[%clk 0:00:25]}
37. Nf3 {[%clk 0:00:16.4]} 37... e4 {[%clk 0:00:24]} 38. Nd4 {[%clk 0:00:16.1]}
38... Rg2+ {[%clk 0:00:21.9]} 39. Kf5 {[%clk 0:00:16.1]} 39... Kf7 {[%clk
0:00:20.9]} 0-1

[Event "*** Titled Tuesday Blitz"]
[Site "Chess.com"]
[Date "2020.05.12"]
[Round "5"]
[White "RATNAKARAN"]
[Black "WPWPWP-2015"]
[Result "1-0"]
[WhiteElo "2578"]
[BlackElo "2408"]
[TimeControl "180+1"]
[EndTime "10:55:31 PDT"]
[Termination "RATNAKARAN won by resignation"]

1. e4 {[%clk 0:03:00.9]} 1... c5 {[%clk 0:02:56.1]} 2. Nf3 {[%clk 0:03:01.1]}
2... e6 {[%clk 0:02:56.1]} 3. d3 {[%clk 0:03:01]} 3... Nc6 {[%clk 0:02:55]} 4.
g3 {[%clk 0:03:01.4]} 4... Nf6 {[%clk 0:02:54.6]} 5. Bg2 {[%clk 0:03:01.9]} 5...
d6 {[%clk 0:02:54.7]} 6. O-O {[%clk 0:03:02]} 6... Be7 {[%clk 0:02:55.1]} 7. Re1
{[%clk 0:03:02.5]} 7... O-O {[%clk 0:02:55]} 8. Be3 {[%clk 0:03:02.3]} 8... Qc7
{[%clk 0:02:54.4]} 9. h3 {[%clk 0:03:01.4]} 9... Rb8 {[%clk 0:02:54.3]} 10. a4
{[%clk 0:02:59.8]} 10... a6 {[%clk 0:02:53.1]} 11. Nbd2 {[%clk 0:02:56.3]} 11...
b5 {[%clk 0:02:52.7]} 12. axb5 {[%clk 0:02:54.8]} 12... axb5 {[%clk 0:02:53.6]}
13. d4 {[%clk 0:02:55.2]} 13... cxd4 {[%clk 0:02:49]} 14. Nxd4 {[%clk
0:02:55.1]} 14... Nxd4 {[%clk 0:02:46.4]} 15. Bxd4 {[%clk 0:02:55.1]} 15... e5
{[%clk 0:02:46.7]} 16. Be3 {[%clk 0:02:52.2]} 16... Be6 {[%clk 0:02:44.4]} 17.
f4 {[%clk 0:02:46.8]} 17... Rfc8 {[%clk 0:02:37.8]} 18. f5 {[%clk 0:02:44.1]}
18... Bd7 {[%clk 0:02:36.9]} 19. c3 {[%clk 0:02:42]} 19... d5 {[%clk 0:02:25.5]}
20. exd5 {[%clk 0:02:39.6]} 20... Bxf5 {[%clk 0:02:24.9]} 21. g4 {[%clk
0:02:38.7]} 21... Bg6 {[%clk 0:02:13.9]} 22. g5 {[%clk 0:02:30.2]} 22... Ne8
{[%clk 0:02:05.7]} 23. Ra7 {[%clk 0:02:28.9]} 23... Qd8 {[%clk 0:02:02.1]} 24.
Ne4 {[%clk 0:02:27.1]} 24... Nd6 {[%clk 0:01:44.1]} 25. Qg4 {[%clk 0:02:08.2]}
25... Nxe4 {[%clk 0:01:33]} 26. Bxe4 {[%clk 0:02:07.8]} 26... Bxe4 {[%clk
0:01:27.8]} 27. Qxe4 {[%clk 0:02:07.2]} 27... Bxg5 {[%clk 0:01:27]} 28. Qxe5
{[%clk 0:02:07.1]} 28... Bxe3+ {[%clk 0:01:18.1]} 29. Rxe3 {[%clk 0:02:06.6]}
29... Qb6 {[%clk 0:01:14.9]} 30. Re7 {[%clk 0:02:03.6]} 30... Ra8 {[%clk
0:00:57]} 31. Kh2 {[%clk 0:02:01.8]} 31... f6 {[%clk 0:00:25.6]} 32. Qg3 {[%clk
0:01:54.5]} 32... g6 {[%clk 0:00:20.2]} 33. Qh4 {[%clk 0:01:53.6]} 33... Qd6+
{[%clk 0:00:14.7]} 34. Kg2 {[%clk 0:01:44.9]} 34... Qxd5+ {[%clk 0:00:14.6]} 35.
Rf3 {[%clk 0:01:38.4]} 35... Qd2+ {[%clk 0:00:12.1]} 36. Rf2 {[%clk 0:01:32.2]}
36... Qd5+ {[%clk 0:00:11.9]} 37. Rf3 {[%clk 0:01:31.9]} 37... Qd2+ {[%clk
0:00:11.9]} 38. Qf2 {[%clk 0:01:32.1]} 38... Qxf2+ {[%clk 0:00:11.9]} 39. Rxf2
{[%clk 0:01:32.5]} 39... Rf8 {[%clk 0:00:11.7]} 40. Rb7 {[%clk 0:01:31.9]} 40...
Rab8 {[%clk 0:00:11.2]} 41. Rxb8 {[%clk 0:01:31.9]} 41... Rxb8 {[%clk
0:00:11.9]} 42. Rxf6 {[%clk 0:01:32.2]} 42... b4 {[%clk 0:00:12.4]} 43. c4
{[%clk 0:01:32.1]} 43... b3 {[%clk 0:00:12.9]} 44. Rf3 {[%clk 0:01:31.3]} 44...
Rc8 {[%clk 0:00:12.7]} 45. Rc3 {[%clk 0:01:29.8]} 45... Rc5 {[%clk 0:00:12.3]}
46. Kf3 {[%clk 0:01:30.1]} 46... Kf7 {[%clk 0:00:12.8]} 47. Ke4 {[%clk
0:01:30.6]} 47... Ke6 {[%clk 0:00:12.5]} 48. Kd4 {[%clk 0:01:31]} 48... Rh5
{[%clk 0:00:12.1]} 49. Rxb3 {[%clk 0:01:29.4]} 49... Rh4+ {[%clk 0:00:11.8]} 50.
Kc5 {[%clk 0:01:29.2]} 50... h5 {[%clk 0:00:11.6]} 51. Rg3 {[%clk 0:01:25.6]}
51... Kd7 {[%clk 0:00:08.1]} 52. b4 {[%clk 0:01:24.5]} 52... g5 {[%clk
0:00:07.4]} 53. Rxg5 {[%clk 0:01:23.1]} 53... Rxh3 {[%clk 0:00:07.9]} 54. Rg7+
{[%clk 0:01:23.3]} 54... Ke6 {[%clk 0:00:07.7]} 55. b5 {[%clk 0:01:24.2]} 55...
h4 {[%clk 0:00:07.2]} 56. b6 {[%clk 0:01:23.9]} 56... Rb3 {[%clk 0:00:06.9]} 57.
Rh7 {[%clk 0:01:23.8]} 57... h3 {[%clk 0:00:07.4]} 58. Kc6 {[%clk 0:01:23.8]}
58... Rc3 {[%clk 0:00:05.2]} 59. c5 {[%clk 0:01:23.5]} 59... Rf3 {[%clk
0:00:05.5]} 60. b7 {[%clk 0:01:23.1]} 60... Rf7 {[%clk 0:00:05.4]} 61. Rxf7
{[%clk 0:01:22.1]} 61... Kxf7 {[%clk 0:00:05.9]} 62. b8=Q {[%clk 0:01:22.6]} 1-0

[Event "*** Titled Tuesday Blitz"]
[Site "Chess.com"]
[Date "2020.05.12"]
[Round "5"]
[White "lamomiablanca"]
[Black "GMJustin"]
[Result "0-1"]
[WhiteElo "2175"]
[BlackElo "2340"]
[TimeControl "180+1"]
[EndTime "10:55:31 PDT"]
[Termination "GMJustin won by resignation"]

1. Nf3 {[%clk 0:03:00.9]} 1... d5 {[%clk 0:02:51.3]} 2. g3 {[%clk 0:03:00.8]}
2... Bg4 {[%clk 0:02:46.9]} 3. Bg2 {[%clk 0:03:00]} 3... Nd7 {[%clk 0:02:43.2]}
4. O-O {[%clk 0:02:33.2]} 4... e6 {[%clk 0:02:28.7]} 5. d3 {[%clk 0:02:30.7]}
5... Bd6 {[%clk 0:02:20.1]} 6. Nbd2 {[%clk 0:02:29.6]} 6... Ne7 {[%clk
0:02:14.5]} 7. e4 {[%clk 0:02:27.7]} 7... O-O {[%clk 0:02:11.3]} 8. Re1 {[%clk
0:02:06.3]} 8... a5 {[%clk 0:02:05.4]} 9. a4 {[%clk 0:02:03.2]} 9... c6 {[%clk
0:01:59.4]} 10. c3 {[%clk 0:02:00.9]} 10... Ne5 {[%clk 0:01:49.2]} 11. Qc2
{[%clk 0:01:55.3]} 11... Nxf3+ {[%clk 0:01:46.3]} 12. Nxf3 {[%clk 0:01:54.3]}
12... Rc8 {[%clk 0:01:15.1]} 13. Qb3 {[%clk 0:01:31.3]} 13... Rb8 {[%clk
0:00:59.9]} 14. Bg5 {[%clk 0:01:18.1]} 14... f6 {[%clk 0:00:51.1]} 15. Bd2
{[%clk 0:01:14.8]} 15... e5 {[%clk 0:00:46.5]} 16. h3 {[%clk 0:00:43.9]} 16...
Be6 {[%clk 0:00:39.6]} 17. d4 {[%clk 0:00:37]} 17... Qd7 {[%clk 0:00:33.2]} 18.
dxe5 {[%clk 0:00:36.3]} 18... dxe4 {[%clk 0:00:27.5]} 19. Qc2 {[%clk 0:00:26.3]}
19... fxe5 {[%clk 0:00:24.5]} 20. Rxe4 {[%clk 0:00:23.4]} 20... Bxh3 {[%clk
0:00:16]} 21. Nxe5 {[%clk 0:00:20.5]} 21... Bxe5 {[%clk 0:00:13.7]} 22. Rxe5
{[%clk 0:00:21.4]} 22... Bxg2 {[%clk 0:00:12.6]} 23. Kxg2 {[%clk 0:00:21]} 23...
Rbd8 {[%clk 0:00:09.5]} 24. Bf4 {[%clk 0:00:20.2]} 24... Ng6 {[%clk 0:00:07.8]}
25. Rh5 {[%clk 0:00:19.4]} 25... Rxf4 {[%clk 0:00:06.5]} 26. Rah1 {[%clk
0:00:15]} 26... Rf6 {[%clk 0:00:05.5]} 27. Rxh7 {[%clk 0:00:14.9]} 27... Qd5+
{[%clk 0:00:05.3]} 28. Kg1 {[%clk 0:00:13.5]} 28... Qd1+ {[%clk 0:00:05.1]} 29.
Qxd1 {[%clk 0:00:13.8]} 29... Rxd1+ {[%clk 0:00:05.6]} 30. Kg2 {[%clk
0:00:14.7]} 30... Rxh1 {[%clk 0:00:05.4]} 31. Kxh1 {[%clk 0:00:15.6]} 31... Kxh7
{[%clk 0:00:04.8]} 0-1

[Event "*** Titled Tuesday Blitz"]
[Site "Chess.com"]
[Date "2020.05.12"]
[Round "5"]
[White "HrvojeZagreb"]
[Black "ChessTraining77"]
[Result "0-1"]
[WhiteElo "2189"]
[BlackElo "2537"]
[TimeControl "180+1"]
[EndTime "10:55:32 PDT"]
[Termination "ChessTraining77 won on time"]

1. d4 {[%clk 0:03:00.9]} 1... Nf6 {[%clk 0:02:54.1]} 2. Bf4 {[%clk 0:03:00.5]}
2... d5 {[%clk 0:02:52.7]} 3. e3 {[%clk 0:02:59.9]} 3... c5 {[%clk 0:02:52.7]}
4. Nc3 {[%clk 0:02:59.3]} 4... a6 {[%clk 0:02:46.9]} 5. dxc5 {[%clk 0:02:58.1]}
5... e6 {[%clk 0:02:44.2]} 6. Na4 {[%clk 0:02:55.8]} 6... Bxc5 {[%clk
0:02:37.7]} 7. Nxc5 {[%clk 0:02:56.7]} 7... Qa5+ {[%clk 0:02:37]} 8. c3 {[%clk
0:02:57.2]} 8... Qxc5 {[%clk 0:02:36.9]} 9. Nf3 {[%clk 0:02:57.3]} 9... Nbd7
{[%clk 0:02:34]} 10. Bd3 {[%clk 0:02:53.1]} 10... b5 {[%clk 0:02:32]} 11. Ne5
{[%clk 0:02:46.4]} 11... Bb7 {[%clk 0:02:28.2]} 12. O-O {[%clk 0:02:36.3]} 12...
Qe7 {[%clk 0:02:25.3]} 13. Bc2 {[%clk 0:02:31.2]} 13... O-O {[%clk 0:02:21.7]}
14. Qf3 {[%clk 0:02:08.4]} 14... Ne4 {[%clk 0:02:12.9]} 15. Bxe4 {[%clk
0:02:01.1]} 15... dxe4 {[%clk 0:02:12.3]} 16. Qg3 {[%clk 0:02:00.4]} 16... f6
{[%clk 0:02:02]} 17. Nxd7 {[%clk 0:01:52.5]} 17... Qxd7 {[%clk 0:02:01.8]} 18.
Rad1 {[%clk 0:01:49.6]} 18... Qf7 {[%clk 0:02:02.1]} 19. Bd6 {[%clk 0:01:23.8]}
19... Rfd8 {[%clk 0:01:58.7]} 20. Ba3 {[%clk 0:01:17.5]} 20... e5 {[%clk
0:01:56.6]} 21. Qg4 {[%clk 0:01:12.4]} 21... Rd3 {[%clk 0:01:53.6]} 22. b3
{[%clk 0:01:02.9]} 22... Rad8 {[%clk 0:01:51.3]} 23. h4 {[%clk 0:00:52.9]} 23...
h5 {[%clk 0:01:12.6]} 24. Qe2 {[%clk 0:00:47.2]} 24... Bc8 {[%clk 0:01:12.3]}
25. f3 {[%clk 0:00:35.1]} 25... Qd7 {[%clk 0:01:11]} 26. Rxd3 {[%clk 0:00:30.6]}
26... exd3 {[%clk 0:01:10.7]} 27. Qd2 {[%clk 0:00:29.8]} 27... e4 {[%clk
0:01:05.7]} 28. fxe4 {[%clk 0:00:29.5]} 28... Qg4 {[%clk 0:01:05.4]} 29. Rf4
{[%clk 0:00:27.1]} 29... Qe2 {[%clk 0:01:05.2]} 30. Rf2 {[%clk 0:00:26.9]} 30...
Qxd2 {[%clk 0:00:59.8]} 31. Rxd2 {[%clk 0:00:26.9]} 31... Bb7 {[%clk 0:01:00]}
32. e5 {[%clk 0:00:21.7]} 32... fxe5 {[%clk 0:00:59.2]} 33. Be7 {[%clk
0:00:21.6]} 33... Rc8 {[%clk 0:00:57]} 34. Bb4 {[%clk 0:00:21]} 34... Kf7 {[%clk
0:00:53.6]} 35. Kf2 {[%clk 0:00:20.8]} 35... Ke6 {[%clk 0:00:53.2]} 36. Ke1
{[%clk 0:00:17.1]} 36... Kf5 {[%clk 0:00:52.6]} 37. Rf2+ {[%clk 0:00:16.9]}
37... Ke4 {[%clk 0:00:52.6]} 38. Kd2 {[%clk 0:00:17.5]} 38... Bd5 {[%clk
0:00:51.1]} 39. Rf1 {[%clk 0:00:08.1]} 39... Rg8 {[%clk 0:00:49.7]} 40. Be7
{[%clk 0:00:05.2]} 40... Re8 {[%clk 0:00:46.1]} 41. Bg5 {[%clk 0:00:05]} 41...
a5 {[%clk 0:00:43.4]} 42. Rf2 {[%clk 0:00:04.5]} 42... a4 {[%clk 0:00:42.8]} 43.
bxa4 {[%clk 0:00:01.1]} 43... bxa4 {[%clk 0:00:42.7]} 44. a3 {[%clk 0:00:01.2]}
44... Rb8 {[%clk 0:00:41.9]} 0-1